[Event "MČR v rapid šachu družstev 2019"]
[Site "Teplice, Czech Republic"]
[Date "2019.09.15"]
[Round "8.24"]
[White "Lacina, Filip"]
[Black "Loskot, Petr"]
[Result "1/2-1/2"]
[TimeControl "15 min. + 5s"]
[WhiteElo "2027"]
[BlackElo "2065"]

1. e4 {[%clk 00:15:08]} e6 {[%clk 00:15:07]} {[%emt 00:00:03]} 2. d4 {[%clk
00:14:25]} {[%emt 00:00:49]} d5 {[%clk 00:15:10]} {[%emt 00:00:01]} 3. e5
{[%clk 00:14:25]} {[%emt 00:00:05]} c5 {[%clk 00:15:13]} {[%emt 00:00:02]} 4.
c3 {[%clk 00:14:19]} {[%emt 00:00:11]} Nc6 {[%clk 00:15:17]} {[%emt 00:00:02]}
5. Nf3 {[%clk 00:14:22]} {[%emt 00:00:01]} Bd7 {[%clk 00:15:11]} {[%emt
00:00:11]} 6. dxc5 {[%clk 00:14:00]} {[%emt 00:00:27]} Bxc5 {[%clk 00:14:41]}
{[%emt 00:00:35]} 7. b4 {[%clk 00:14:04]} {[%emt 00:00:01]} Be7 {[%clk
00:13:02]} {[%emt 00:01:44]} 8. b5 {[%clk 00:14:03]} {[%emt 00:00:07]} Na5
{[%clk 00:12:58]} {[%emt 00:00:08]} 9. Bd3 {[%clk 00:13:55]} {[%emt 00:00:12]}
Rc8 {[%clk 00:12:19]} {[%emt 00:00:45]} 10. O-O {[%clk 00:13:44]} {[%emt
00:00:16]} Nc4 {[%clk 00:10:56]} {[%emt 00:01:28]} 11. a4 {[%clk 00:13:47]}
{[%emt 00:00:02]} Qc7 {[%clk 00:10:08]} {[%emt 00:00:53]} 12. Re1 {[%clk
00:13:22]} {[%emt 00:00:31]} a6 {[%clk 00:07:57]} {[%emt 00:02:16]} 13. bxa6
{[%clk 00:10:00]} {[%emt 00:03:27]} bxa6 {[%clk 00:08:01]} 14. Ra2 {[%clk
00:09:42]} {[%emt 00:00:23]} Rb8 {[%clk 00:07:49]} {[%emt 00:00:18]} 15. Rae2
{[%clk 00:09:05]} {[%emt 00:00:41]} Qc6 {[%clk 00:06:36]} {[%emt 00:01:19]} 16.
Bc2 {[%clk 00:07:01]} {[%emt 00:02:08]} Bc5 {[%clk 00:05:40]} {[%emt 00:01:01]}
17. Nd4 {[%clk 00:06:28]} {[%emt 00:00:38]} Qc7 {[%clk 00:05:20]} {[%emt
00:00:25]} 18. Qd3 {[%clk 00:06:00]} {[%emt 00:00:34]} Ne7 {[%clk 00:05:02]}
{[%emt 00:00:22]} 19. Qg3 {[%clk 00:05:35]} {[%emt 00:00:30]} g6 {[%clk
00:04:04]} {[%emt 00:01:03]} 20. h4 {[%clk 00:04:58]} {[%emt 00:00:42]} h5
{[%clk 00:04:08]} {[%emt 00:00:01]} 21. Bg5 {[%clk 00:04:37]} {[%emt 00:00:26]}
Nc6 {[%clk 00:02:56]} {[%emt 00:01:17]} 22. Bf6 {[%clk 00:04:01]} {[%emt
00:00:41]} Rg8 {[%clk 00:02:51]} {[%emt 00:00:10]} 23. Qf4 {[%clk 00:02:31]}
{[%emt 00:01:35]} Be7 {[%clk 00:02:03]} {[%emt 00:00:53]} 24. Qh6 {[%clk
00:01:53]} {[%emt 00:00:44]} Bxf6 {[%clk 00:01:55]} {[%emt 00:00:13]} 25. exf6
{[%clk 00:01:56]} {[%emt 00:00:02]} Nxd4 {[%clk 00:01:58]} {[%emt 00:00:01]} 26.
cxd4 {[%clk 00:01:40]} {[%emt 00:00:21]} Qd6 {[%clk 00:01:36]} {[%emt
00:00:28]} 27. Nd2 {[%emt 00:01:29]} 1/2-1/2

[Event "MČR v rapid šachu družstev 2019"]
[Site "Teplice, Czech Republic"]
[Date "2019.09.15"]
[Round "8.25"]
[White "Bujak, Michal"]
[Black "Babicka, Michal"]
[Result "0-1"]
[TimeControl "15 min. + 5s"]
[WhiteElo "2170"]
[BlackElo "2010"]

1. e4 {[%clk 00:15:07]} {[%emt 00:00:02]} c5 {[%clk 00:15:09]} {[%emt
00:00:01]} 2. Nf3 {[%clk 00:15:11]} {[%emt 00:00:02]} d6 {[%clk 00:15:13]}
{[%emt 00:00:01]} 3. d4 {[%clk 00:15:15]} {[%emt 00:00:01]} cxd4 {[%clk
00:15:15]} {[%emt 00:00:03]} 4. Nxd4 {[%clk 00:15:19]} {[%emt 00:00:01]} Nf6
{[%clk 00:15:19]} {[%emt 00:00:01]} 5. Nc3 {[%clk 00:15:22]} a6 {[%clk
00:15:23]} {[%emt 00:00:01]} 6. Bg5 {[%clk 00:15:25]} {[%emt 00:00:01]} e6
{[%clk 00:15:27]} {[%emt 00:00:02]} 7. f4 {[%clk 00:15:29]} {[%emt 00:00:01]}
Be7 {[%clk 00:15:31]} 8. Qf3 {[%clk 00:15:32]} {[%emt 00:00:04]} O-O {[%clk
00:15:31]} {[%emt 00:00:03]} 9. O-O-O {[%clk 00:15:26]} {[%emt 00:00:12]} Qc7
{[%clk 00:15:31]} {[%emt 00:00:06]} 10. Bd3 {[%clk 00:12:21]} {[%emt 00:03:09]}
Nbd7 {[%clk 00:12:54]} {[%emt 00:02:43]} 11. Rhe1 {[%clk 00:08:46]} {[%emt
00:03:40]} b5 {[%clk 00:09:35]} {[%emt 00:03:23]} 12. e5 {[%clk 00:06:34]}
{[%emt 00:02:17]} dxe5 {[%clk 00:08:59]} {[%emt 00:00:42]} 13. fxe5 {[%clk
00:06:35]} {[%emt 00:00:04]} Nxe5 {[%clk 00:08:47]} {[%emt 00:00:17]} 14. Rxe5
{[%clk 00:06:14]} {[%emt 00:00:25]} Qxe5 {[%clk 00:08:40]} {[%emt 00:00:12]} 15.
Bf4 {[%clk 00:06:18]} Qc5 {[%clk 00:04:53]} {[%emt 00:03:52]} 16. Qxa8 {[%clk
00:05:57]} {[%emt 00:00:26]} e5 {[%clk 00:04:48]} {[%emt 00:00:11]} 17. Nb3
{[%clk 00:05:10]} {[%emt 00:00:52]} Qb6 {[%clk 00:04:11]} {[%emt 00:00:42]} 18.
Qf3 {[%clk 00:00:40]} {[%emt 00:04:34]} exf4 {[%clk 00:03:16]} {[%emt
00:01:00]} 19. Qxf4 {[%clk 00:00:44]} {[%emt 00:00:02]} Bg4 {[%clk 00:01:44]}
{[%emt 00:01:37]} 20. Re1 {[%clk 00:00:38]} {[%emt 00:00:10]} Bd6 {[%clk
00:01:46]} {[%emt 00:00:03]} 21. Qg5 {[%clk 00:00:37]} {[%emt 00:00:05]} h6
{[%clk 00:01:10]} {[%emt 00:00:42]} 22. Qh4 {[%clk 00:00:38]} {[%emt 00:00:03]}
Bf4+ {[%clk 00:00:12]} {[%emt 00:01:04]} 23. Kb1 {[%clk 00:00:42]} Bg5 {[%clk
00:00:17]} {[%emt 00:00:01]} 24. Qg3 {[%clk 00:00:45]} {[%emt 00:00:01]} Be6
{[%clk 00:00:17]} {[%emt 00:00:06]} 25. h4 {[%clk 00:00:46]} {[%emt 00:00:04]}
Nh5 {[%clk 00:00:13]} {[%emt 00:00:08]} 26. Qf2 {[%clk 00:00:44]} {[%emt
00:00:07]} Qxf2 {[%clk 00:00:17]} {[%emt 00:00:02]} 0-1

[Event "MČR v rapid šachu družstev 2019"]
[Site "Teplice, Czech Republic"]
[Date "2019.09.15"]
[Round "8.26"]
[White "Vales, Vaclav"]
[Black "Sott, Pavel"]
[Result "1/2-1/2"]
[TimeControl "15 min. + 5s"]
[WhiteElo "2110"]
[BlackElo "2179"]

1. d4 {[%clk 00:15:09]} {[%emt 00:01:41]} Nf6 {[%clk 00:15:09]} {[%emt
00:00:01]} 2. Nf3 {[%clk 00:15:13]} c5 {[%clk 00:15:11]} {[%emt 00:00:03]} 3.
c3 {[%clk 00:15:17]} {[%emt 00:00:01]} cxd4 {[%clk 00:15:14]} {[%emt 00:00:02]}
4. cxd4 {[%clk 00:15:21]} {[%emt 00:00:01]} g6 {[%clk 00:15:16]} {[%emt
00:00:04]} 5. Nc3 {[%clk 00:15:20]} {[%emt 00:00:05]} Bg7 {[%clk 00:15:16]}
{[%emt 00:00:05]} 6. e4 {[%clk 00:15:23]} {[%emt 00:00:02]} d6 {[%clk
00:15:16]} {[%emt 00:00:05]} 7. h3 {[%clk 00:15:25]} {[%emt 00:00:03]} O-O
{[%clk 00:15:19]} {[%emt 00:00:02]} 8. Bd3 {[%clk 00:15:21]} {[%emt 00:00:09]}
a6 {[%clk 00:14:33]} {[%emt 00:00:51]} 9. O-O {[%clk 00:15:22]} {[%emt
00:00:05]} e6 {[%clk 00:14:34]} {[%emt 00:00:03]} 10. Bg5 {[%clk 00:15:11]}
{[%emt 00:00:16]} Qc7 {[%clk 00:14:27]} {[%emt 00:00:12]} 11. Rc1 {[%clk
00:15:07]} {[%emt 00:00:09]} Qb6 {[%clk 00:14:00]} {[%emt 00:00:32]} 12. Qd2
{[%clk 00:14:48]} {[%emt 00:00:23]} Nc6 {[%clk 00:13:58]} {[%emt 00:00:08]} 13.
Bb1 {[%clk 00:14:49]} {[%emt 00:00:04]} Re8 {[%clk 00:13:32]} {[%emt 00:00:31]}
14. Na4 {[%clk 00:12:09]} {[%emt 00:02:45]} Qa7 {[%clk 00:12:03]} {[%emt
00:01:34]} 15. d5 {[%clk 00:11:24]} {[%emt 00:00:50]} b5 {[%clk 00:08:30]}
{[%emt 00:03:38]} 16. Be3 {[%clk 00:10:48]} {[%emt 00:00:40]} Qb8 {[%clk
00:08:06]} {[%emt 00:00:30]} 17. Nb6 {[%clk 00:10:44]} {[%emt 00:00:09]} exd5
{[%clk 00:08:02]} {[%emt 00:00:09]} 18. exd5 {[%clk 00:10:00]} {[%emt
00:00:49]} Ne7 {[%clk 00:07:25]} {[%emt 00:00:42]} 19. Nxa8 {[%clk 00:09:12]}
{[%emt 00:00:53]} Qxa8 {[%clk 00:07:29]} {[%emt 00:00:02]} 20. Bg5 {[%clk
00:09:11]} {[%emt 00:00:06]} Bb7 {[%clk 00:07:08]} {[%emt 00:00:26]} 21. Rfe1
{[%clk 00:08:01]} {[%emt 00:01:14]} Nexd5 {[%clk 00:07:07]} {[%emt 00:00:05]}
22. Rxe8+ {[%clk 00:07:57]} {[%emt 00:00:10]} Qxe8 {[%clk 00:07:10]} {[%emt
00:00:02]} 23. b3 {[%clk 00:07:40]} {[%emt 00:00:22]} b4 {[%clk 00:06:54]}
{[%emt 00:00:21]} 24. Re1 {[%clk 00:07:34]} {[%emt 00:00:10]} Qd7 {[%clk
00:06:37]} {[%emt 00:00:23]} 25. Qd3 {[%clk 00:06:44]} {[%emt 00:00:55]} Nh5
{[%clk 00:06:07]} {[%emt 00:00:35]} 26. Qe2 {[%clk 00:05:50]} {[%emt 00:00:59]}
Nhf6 {[%clk 00:05:28]} {[%emt 00:00:44]} 27. Bd3 {[%clk 00:05:17]} {[%emt
00:00:37]} a5 {[%clk 00:05:07]} {[%emt 00:00:27]} 28. Bb5 {[%clk 00:05:07]}
{[%emt 00:00:15]} Qc8 {[%clk 00:04:57]} {[%emt 00:00:15]} 29. Be8 {[%clk
00:04:25]} {[%emt 00:00:47]} h6 {[%clk 00:04:33]} {[%emt 00:00:29]} 30. Bxf6
{[%clk 00:04:20]} {[%emt 00:00:10]} Bxf6 {[%clk 00:04:34]} {[%emt 00:00:04]} 31.
Ba4 {[%clk 00:04:13]} {[%emt 00:00:11]} Kg7 {[%clk 00:04:32]} {[%emt 00:00:08]}
32. Qe8 {[%clk 00:04:11]} {[%emt 00:00:07]} Qc3 {[%clk 00:04:32]} {[%emt
00:00:05]} 33. Qd7 {[%clk 00:03:57]} {[%emt 00:00:20]} Nc7 {[%clk 00:03:44]}
{[%emt 00:00:53]} 34. Re3 {[%clk 00:03:43]} {[%emt 00:00:19]} Qc1+ {[%clk
00:03:45]} {[%emt 00:00:04]} 35. Re1 {[%clk 00:03:31]} {[%emt 00:00:16]} Qc3
{[%clk 00:03:48]} {[%emt 00:00:02]} 36. Re3 {[%clk 00:03:19]} {[%emt 00:00:18]}
Qc1+ {[%clk 00:03:51]} {[%emt 00:00:01]} 37. Re1 {[%clk 00:03:23]} {[%emt
00:00:01]} Qc3 {[%clk 00:03:55]} 38. Re3 {[%emt 00:00:01]} Qc1+ {[%emt
00:00:15]} 39. Ne1 Nd5 {[%emt 00:00:02]} 1/2-1/2

[Event "MČR v rapid šachu družstev 2019"]
[Site "Teplice, Czech Republic"]
[Date "2019.09.15"]
[Round "8.27"]
[White "Kupka, Frantisek"]
[Black "Janda, Zdenek"]
[Result "0-1"]
[TimeControl "15 min. + 5s"]
[WhiteElo "2061"]
[BlackElo "2008"]

1. e4 {[%clk 00:15:07]} {[%emt 00:00:02]} d6 {[%clk 00:15:09]} {[%emt
00:00:01]} 2. d4 {[%clk 00:15:08]} {[%emt 00:00:05]} Nf6 {[%clk 00:15:12]}
{[%emt 00:00:02]} 3. Bd3 {[%clk 00:14:57]} {[%emt 00:00:15]} Nc6 {[%clk
00:15:07]} {[%emt 00:00:11]} 4. c3 {[%clk 00:14:48]} {[%emt 00:00:14]} e5
{[%clk 00:15:03]} {[%emt 00:00:09]} 5. d5 {[%clk 00:14:49]} {[%emt 00:00:04]}
Ne7 {[%clk 00:15:06]} {[%emt 00:00:02]} 6. Ne2 {[%clk 00:14:48]} {[%emt
00:00:05]} Nd7 {[%clk 00:14:58]} {[%emt 00:00:13]} 7. O-O {[%clk 00:14:42]}
{[%emt 00:00:11]} g6 {[%clk 00:14:57]} {[%emt 00:00:06]} 8. f4 {[%clk
00:14:41]} {[%emt 00:00:06]} exf4 {[%clk 00:14:56]} {[%emt 00:00:06]} 9. Bxf4
{[%clk 00:14:38]} {[%emt 00:00:08]} Bg7 {[%clk 00:15:00]} {[%emt 00:00:01]} 10.
h3 {[%clk 00:14:07]} {[%emt 00:00:37]} O-O {[%clk 00:14:52]} {[%emt 00:00:13]}
11. Ng3 {[%clk 00:13:58]} {[%emt 00:00:13]} Ne5 {[%clk 00:14:46]} {[%emt
00:00:12]} 12. Bc2 {[%clk 00:13:54]} {[%emt 00:00:08]} f5 {[%clk 00:14:36]}
{[%emt 00:00:15]} 13. Nd2 {[%clk 00:13:31]} {[%emt 00:00:29]} c6 {[%clk
00:13:44]} {[%emt 00:00:56]} 14. dxc6 {[%clk 00:13:22]} {[%emt 00:00:15]} bxc6
{[%clk 00:13:39]} {[%emt 00:00:10]} 15. Bb3+ {[%clk 00:13:12]} {[%emt
00:00:15]} Kh8 {[%clk 00:13:27]} {[%emt 00:00:16]} 16. exf5 {[%clk 00:12:36]}
{[%emt 00:00:41]} Nxf5 {[%clk 00:13:15]} {[%emt 00:00:18]} 17. Nde4 {[%clk
00:12:13]} {[%emt 00:00:27]} d5 {[%clk 00:12:51]} {[%emt 00:00:29]} 18. Nxf5
{[%clk 00:12:03]} {[%emt 00:00:15]} Bxf5 {[%clk 00:12:35]} {[%emt 00:00:21]} 19.
Ng3 {[%clk 00:11:56]} {[%emt 00:00:12]} Bc8 {[%clk 00:11:27]} {[%emt 00:01:13]}
20. Qe2 {[%clk 00:10:52]} {[%emt 00:01:09]} Re8 {[%clk 00:09:29]} {[%emt
00:02:03]} 21. Qd2 {[%clk 00:09:18]} {[%emt 00:01:38]} Ba6 {[%clk 00:09:01]}
{[%emt 00:00:34]} 22. Rfe1 {[%clk 00:08:24]} {[%emt 00:00:59]} Qd7 {[%clk
00:07:50]} {[%emt 00:01:16]} 23. Rad1 {[%clk 00:07:42]} {[%emt 00:00:47]} Nd3
{[%clk 00:07:39]} {[%emt 00:00:16]} 24. Rxe8+ Rxe8 {[%clk 00:07:43]} 25. Be3
{[%clk 00:06:47]} {[%emt 00:00:40]} Qd6 {[%clk 00:07:10]} {[%emt 00:00:38]} 26.
Nf1 {[%clk 00:05:52]} {[%emt 00:00:59]} c5 {[%clk 00:06:34]} {[%emt 00:00:42]}
27. Rb1 {[%clk 00:04:20]} {[%emt 00:01:36]} d4 {[%clk 00:06:18]} {[%emt
00:00:21]} 28. cxd4 {[%clk 00:03:53]} {[%emt 00:00:32]} Bxd4 {[%clk 00:05:58]}
{[%emt 00:00:25]} 29. Bxd4+ {[%clk 00:02:27]} {[%emt 00:01:31]} Qxd4+ {[%clk
00:06:00]} {[%emt 00:00:03]} 30. Kh2 {[%clk 00:02:18]} {[%emt 00:00:13]} c4
{[%clk 00:04:20]} {[%emt 00:01:46]} 31. Bc2 {[%clk 00:01:34]} {[%emt 00:00:49]}
Bb7 {[%clk 00:03:48]} {[%emt 00:00:36]} 32. Qc3 {[%clk 00:01:26]} {[%emt
00:00:14]} Qe5+ {[%clk 00:03:24]} {[%emt 00:00:29]} 33. Qxe5+ {[%clk 00:00:31]}
{[%emt 00:01:01]} Rxe5 {[%clk 00:03:27]} {[%emt 00:00:01]} 34. Ng3 {[%clk
00:00:10]} {[%emt 00:00:27]} h5 {[%clk 00:03:25]} {[%emt 00:00:07]} 35. h4
{[%clk 00:00:11]} {[%emt 00:00:04]} Kg7 {[%clk 00:03:23]} {[%emt 00:00:06]} 36.
b3 {[%clk 00:00:11]} {[%emt 00:00:05]} Nf4 {[%clk 00:02:46]} {[%emt 00:00:42]}
37. bxc4 {[%clk 00:00:15]} {[%emt 00:00:03]} Bxg2 {[%clk 00:02:44]} {[%emt
00:00:06]} 38. Rb2 {[%clk 00:00:10]} {[%emt 00:00:09]} Bc6 {[%clk 00:02:38]}
{[%emt 00:00:11]} 39. Bb3 {[%clk 00:00:14]} {[%emt 00:00:01]} Nd3 {[%clk
00:02:35]} {[%emt 00:00:09]} 40. Rd2 {[%clk 00:00:17]} {[%emt 00:00:02]} Nc5
{[%clk 00:02:30]} {[%emt 00:00:09]} 41. Kg1 {[%clk 00:00:18]} {[%emt 00:00:04]}
Re3 {[%clk 00:02:26]} {[%emt 00:00:10]} 42. Nf1 {[%clk 00:00:15]} {[%emt
00:00:08]} Rh3 {[%clk 00:02:27]} {[%emt 00:00:04]} 43. Rh2 {[%clk 00:00:14]}
{[%emt 00:00:06]} Rc3 {[%clk 00:02:26]} {[%emt 00:00:06]} 44. Kf2 {[%clk
00:00:12]} {[%emt 00:00:06]} Nxb3 {[%clk 00:02:09]} {[%emt 00:00:23]} 45. axb3
{[%clk 00:00:15]} {[%emt 00:00:02]} Rxb3 {[%clk 00:02:12]} {[%emt 00:00:02]} 46.
Ke2 {[%clk 00:00:16]} {[%emt 00:00:03]} Rb2+ {[%clk 00:02:08]} {[%emt
00:00:09]} 47. Nd2 {[%clk 00:00:21]} {[%emt 00:00:01]} a5 {[%clk 00:02:12]} 48.
Kd3 {[%clk 00:00:23]} {[%emt 00:00:02]} a4 {[%clk 00:02:15]} {[%emt 00:00:03]}
49. Kc3 {[%clk 00:00:23]} {[%emt 00:00:04]} a3 {[%emt 00:00:04]} 50. Rf2 {[%clk
00:00:23]} Ba4 {[%clk 00:02:21]} {[%emt 00:00:05]} 51. Rf1 {[%clk 00:00:25]}
{[%emt 00:00:02]} Rc2+ {[%clk 00:02:20]} {[%emt 00:00:06]} 52. Kd3 {[%clk
00:00:27]} {[%emt 00:00:03]} a2 {[%clk 00:02:16]} {[%emt 00:00:09]} 53. Ra1
{[%clk 00:00:28]} {[%emt 00:00:04]} Kf6 {[%clk 00:02:09]} {[%emt 00:00:13]} 54.
c5 {[%clk 00:00:22]} {[%emt 00:00:10]} Ke6 {[%clk 00:02:01]} {[%emt 00:00:13]}
55. Nc4 {[%clk 00:00:20]} {[%emt 00:00:08]} Rh2 {[%clk 00:01:49]} {[%emt
00:00:17]} 56. Nb6 {[%clk 00:00:15]} {[%emt 00:00:10]} Bb5+ {[%clk 00:01:47]}
{[%emt 00:00:07]} 57. Kc3 {[%clk 00:00:14]} {[%emt 00:00:05]} Bc6 {[%clk
00:01:26]} {[%emt 00:00:26]} 58. Nc4 {[%clk 00:00:09]} {[%emt 00:00:10]} Kd5
{[%clk 00:01:26]} {[%emt 00:00:05]} 59. Ne3+ {[%clk 00:00:10]} {[%emt
00:00:05]} Kxc5 {[%clk 00:01:29]} {[%emt 00:00:02]} 60. Kd3 {[%clk 00:00:11]}
{[%emt 00:00:03]} Bd5 {[%clk 00:01:17]} {[%emt 00:00:17]} 61. Nc2 {[%clk
00:00:10]} {[%emt 00:00:07]} Be4+ {[%clk 00:01:10]} {[%emt 00:00:12]} 62. Kxe4
{[%clk 00:00:14]} {[%emt 00:00:01]} Rxc2 {[%clk 00:01:13]} {[%emt 00:00:02]} 63.
Kf4 {[%clk 00:00:17]} {[%emt 00:00:02]} Kb4 {[%clk 00:01:15]} {[%emt 00:00:03]}
64. Kg5 {[%clk 00:00:18]} {[%emt 00:00:03]} Rg2+ {[%clk 00:01:18]} {[%emt
00:00:01]} 65. Kf6 {[%clk 00:00:22]} {[%emt 00:00:02]} Kb3 {[%emt 00:00:06]}
0-1

[Event "MČR v rapid šachu družstev 2019"]
[Site "Teplice, Czech Republic"]
[Date "2019.09.15"]
[Round "8.28"]
[White "Havranek, Tomas"]
[Black "Janocko, Petr"]
[Result "1-0"]
[TimeControl "15 min. + 5s"]
[WhiteElo "2023"]
[BlackElo "2071"]

1. e4 {[%clk 00:15:08]} c6 {[%clk 00:15:09]} {[%emt 00:00:02]} 2. d4 {[%clk
00:15:11]} {[%emt 00:00:02]} d5 {[%clk 00:15:13]} 3. Nc3 {[%clk 00:15:11]}
{[%emt 00:00:06]} dxe4 {[%clk 00:15:17]} {[%emt 00:00:01]} 4. Nxe4 {[%clk
00:15:15]} Bf5 {[%clk 00:15:21]} {[%emt 00:00:01]} 5. Ng3 {[%clk 00:15:19]}
{[%emt 00:00:02]} Bg6 {[%clk 00:15:25]} {[%emt 00:00:01]} 6. Nf3 {[%clk
00:15:22]} {[%emt 00:00:02]} Nd7 {[%clk 00:15:29]} 7. h4 {[%clk 00:15:14]}
{[%emt 00:00:13]} h5 {[%clk 00:15:32]} 8. Bd3 {[%clk 00:14:18]} {[%emt
00:01:00]} Bxd3 {[%clk 00:15:36]} {[%emt 00:00:02]} 9. Qxd3 {[%clk 00:14:22]}
{[%emt 00:00:02]} e6 {[%clk 00:15:37]} {[%emt 00:00:03]} 10. Bd2 {[%clk
00:14:16]} {[%emt 00:00:11]} Ngf6 {[%clk 00:15:40]} {[%emt 00:00:02]} 11. O-O-O
{[%clk 00:13:47]} {[%emt 00:00:35]} Bd6 {[%clk 00:15:43]} {[%emt 00:00:01]} 12.
Ng5 {[%clk 00:13:29]} {[%emt 00:00:24]} Bxg3 {[%clk 00:13:50]} {[%emt
00:01:57]} 13. Qxg3 {[%clk 00:12:46]} {[%emt 00:00:48]} Qe7 {[%clk 00:13:37]}
{[%emt 00:00:18]} 14. Bf4 {[%clk 00:11:54]} {[%emt 00:00:58]} Nb6 {[%clk
00:13:00]} {[%emt 00:00:42]} 15. Bd6 {[%clk 00:11:18]} {[%emt 00:00:40]} Qd7
{[%clk 00:13:03]} {[%emt 00:00:02]} 16. Rhe1 {[%clk 00:10:39]} {[%emt
00:00:44]} O-O-O {[%clk 00:13:05]} {[%emt 00:00:03]} 17. Bb8 {[%clk 00:09:57]}
{[%emt 00:00:47]} Rhe8 {[%clk 00:10:37]} {[%emt 00:02:33]} 18. Bxa7 {[%clk
00:09:54]} {[%emt 00:00:08]} Nbd5 {[%clk 00:10:38]} {[%emt 00:00:04]} 19. Qb8#
{[%emt 00:00:02]} 1-0